[Event "ONJK 2024 ABC"]
[Site "Velp, Netherlands"]
[Date "2024.08.03"]
[Round "3.1"]
[White "Musabayeva, Diana"]
[Black "Elferink, Leon"]
[Result "1/2-1/2"]
[TimeControl "90 minutes + 30 seconds"]
[WhiteElo "1871"]
[BlackElo "1900"]

1. e4 {[%clk 01:30:59]} e5 {[%clk 01:30:53]} {[%emt 00:00:07]} 2. Nf3 {[%clk
01:31:24]} {[%emt 00:00:04]} Nc6 {[%clk 01:31:19]} {[%emt 00:00:05]} 3. Bb5
{[%clk 01:31:50]} {[%emt 00:00:04]} a6 {[%clk 01:31:44]} {[%emt 00:00:05]} 4.
Ba4 {[%clk 01:32:15]} {[%emt 00:00:04]} Nf6 {[%clk 01:32:05]} {[%emt 00:00:09]}
5. O-O {[%clk 01:32:40]} {[%emt 00:00:05]} Nxe4 {[%clk 01:32:17]} {[%emt
00:00:18]} 6. Re1 {[%clk 01:29:41]} {[%emt 00:03:29]} Nc5 {[%clk 01:32:36]}
{[%emt 00:00:12]} 7. Nxe5 {[%clk 01:30:01]} {[%emt 00:00:10]} Nxe5 {[%clk
01:32:52]} {[%emt 00:00:14]} 8. Rxe5+ {[%clk 01:30:26]} {[%emt 00:00:05]} Be7
{[%clk 01:33:04]} {[%emt 00:00:18]} 9. Bb3 {[%clk 01:28:02]} {[%emt 00:02:53]}
Nxb3 {[%clk 01:33:13]} {[%emt 00:00:21]} 10. axb3 {[%clk 01:28:24]} {[%emt
00:00:08]} d5 {[%clk 01:33:20]} {[%emt 00:00:23]} 11. d4 {[%clk 01:25:23]}
{[%emt 00:03:31]} Be6 {[%clk 01:31:51]} {[%emt 00:02:00]} 12. Re1 {[%clk
01:23:07]} {[%emt 00:02:44]} O-O {[%clk 01:29:45]} {[%emt 00:02:37]} 13. Bf4
{[%clk 01:22:07]} {[%emt 00:01:30]} Rc8 {[%clk 01:24:43]} {[%emt 00:05:32]} 14.
Qd3 {[%clk 01:17:34]} {[%emt 00:05:03]} Bd6 {[%clk 01:23:05]} {[%emt 00:02:08]}
15. Qg3 {[%clk 01:13:07]} {[%emt 00:04:57]} Bxf4 {[%clk 01:17:37]} {[%emt
00:05:59]} 16. Qxf4 {[%clk 01:13:33]} {[%emt 00:00:04]} Qd7 {[%clk 01:17:14]}
{[%emt 00:00:54]} 17. Nc3 {[%clk 01:02:49]} {[%emt 00:11:14]} Rfe8 {[%clk
01:14:20]} {[%emt 00:03:23]} 18. Re2 {[%clk 01:01:05]} {[%emt 00:02:14]} Re7
{[%clk 01:12:24]} {[%emt 00:02:27]} 19. Rae1 {[%clk 00:58:19]} {[%emt
00:03:15]} Rce8 {[%clk 01:10:09]} {[%emt 00:02:45]} 20. f3 {[%clk 00:51:43]}
{[%emt 00:07:07]} Bf5 {[%clk 01:04:01]} {[%emt 00:06:37]} 21. Rxe7 {[%clk
00:50:53]} {[%emt 00:01:20]} Rxe7 {[%clk 01:03:56]} {[%emt 00:00:36]} 22. Rxe7
{[%clk 00:51:03]} {[%emt 00:00:20]} Qxe7 {[%clk 01:04:21]} {[%emt 00:00:05]} 23.
Kf2 {[%clk 00:51:29]} {[%emt 00:00:04]} Bxc2 {[%clk 01:04:35]} {[%emt
00:00:16]} 24. Nxd5 {[%clk 00:51:48]} {[%emt 00:00:10]} Qd6 {[%clk 01:04:47]}
{[%emt 00:00:11]} 25. Qxd6 {[%clk 00:50:32]} {[%emt 00:01:54]} cxd6 {[%clk
01:04:51]} {[%emt 00:00:26]} 26. Ne7+ {[%clk 00:50:33]} {[%emt 00:00:29]} Kf8
{[%emt 00:00:24]} 27. Nc8 {[%clk 00:50:59]} Bxb3 {[%clk 01:01:12]} {[%emt
00:04:19]} 28. Nxd6 {[%clk 00:51:23]} {[%emt 00:00:06]} Bd5 {[%clk 00:58:04]}
{[%emt 00:03:38]} 29. Nc8 {[%clk 00:50:36]} {[%emt 00:01:16]} 1/2-1/2

[Event "ONJK 2024 ABC"]
[Site "Velp, Netherlands"]
[Date "2024.08.03"]
[Round "3.2"]
[White "Leenen, Boyd"]
[Black "Bernfeld, Ben"]
[Result "1-0"]
[TimeControl "90 minutes + 30 seconds"]
[WhiteElo "1921"]
[BlackElo "1438"]

1. d4 Nf6 2. c4 {[%clk 01:30:30]} e6 {[%clk 01:30:30]} 3. Nf3 {[%clk 01:31:40]}
{[%emt 00:00:36]} b6 {[%clk 01:31:43]} 4. Nc3 {[%clk 01:31:57]} {[%emt
00:00:27]} Bb4 {[%emt 00:00:18]} 5. Bg5 h6 {[%clk 01:32:16]} {[%emt 00:00:21]}
6. Bh4 {[%clk 01:32:35]} {[%emt 00:00:10]} Bb7 {[%clk 01:32:23]} {[%emt
00:00:25]} 7. e3 {[%clk 01:32:41]} {[%emt 00:00:21]} d6 {[%clk 01:31:33]}
{[%emt 00:01:22]} 8. Bd3 {[%clk 01:32:20]} {[%emt 00:00:50]} g5 {[%clk
01:31:40]} {[%emt 00:00:23]} 9. Bg3 {[%clk 01:32:39]} {[%emt 00:00:11]} Ne4
{[%clk 01:32:05]} {[%emt 00:00:06]} 10. Qa4+ {[%clk 01:32:37]} {[%emt
00:00:31]} Nc6 {[%clk 01:32:04]} {[%emt 00:00:32]} 11. Bxe4 {[%clk 01:32:34]}
{[%emt 00:00:32]} Bxc3+ {[%clk 01:32:22]} {[%emt 00:00:12]} 1-0

[Event "ONJK 2024 ABC"]
[Site "Velp, Netherlands"]
[Date "2024.08.03"]
[Round "3.3"]
[White "Rogozyanskiy, Alexander"]
[Black "Decraene, Lotus"]
[Result "1-0"]
[TimeControl "90 minutes + 30 seconds"]
[WhiteElo "1803"]
[BlackElo "1799"]

1. e4 {[%clk 01:30:57]} {[%emt 00:00:03]} c5 {[%clk 01:30:45]} {[%emt
00:00:15]} 2. Nf3 {[%clk 01:31:22]} {[%emt 00:00:05]} d6 {[%clk 01:30:55]}
{[%emt 00:00:20]} 3. d4 {[%clk 01:31:47]} {[%emt 00:00:05]} cxd4 {[%clk
01:31:13]} {[%emt 00:00:12]} 4. Nxd4 {[%clk 01:32:12]} {[%emt 00:00:04]} Nf6
{[%clk 01:31:29]} {[%emt 00:00:15]} 5. Nc3 {[%clk 01:32:37]} {[%emt 00:00:04]}
a6 {[%clk 01:31:51]} {[%emt 00:00:10]} 6. Rg1 {[%clk 01:33:02]} {[%emt
00:00:04]} e5 {[%clk 01:27:35]} {[%emt 00:04:46]} 7. Nb3 {[%clk 01:33:21]}
{[%emt 00:00:10]} Be6 {[%clk 01:27:39]} {[%emt 00:00:27]} 8. g4 {[%clk
01:33:30]} {[%emt 00:00:21]} Be7 {[%clk 01:27:03]} {[%emt 00:01:06]} 9. g5
{[%clk 01:32:57]} {[%emt 00:01:02]} Nfd7 {[%clk 01:27:02]} {[%emt 00:00:31]} 10.
Be3 {[%clk 01:33:10]} {[%emt 00:00:16]} Nc6 {[%clk 01:26:12]} {[%emt 00:01:21]}
11. Qd2 {[%clk 01:32:51]} {[%emt 00:00:49]} b5 {[%clk 01:25:06]} {[%emt
00:01:36]} 12. Nd5 {[%clk 01:29:41]} {[%emt 00:03:40]} Qb8 {[%clk 01:17:18]}
{[%emt 00:08:18]} 13. Nxe7 {[%clk 01:16:56]} {[%emt 00:13:16]} Kxe7 {[%clk
01:14:19]} {[%emt 00:03:28]} 14. Rd1 {[%clk 01:15:16]} {[%emt 00:02:09]} Rd8
{[%clk 01:12:37]} {[%emt 00:02:12]} 15. Nc1 {[%clk 00:57:04]} {[%emt 00:18:42]}
Nb6 {[%clk 01:03:53]} {[%emt 00:09:14]} 16. b3 {[%clk 00:56:08]} {[%emt
00:01:27]} Qc7 {[%clk 01:03:47]} {[%emt 00:00:36]} 17. f3 {[%clk 00:51:02]}
{[%emt 00:05:35]} Rac8 {[%clk 01:03:01]} {[%emt 00:01:15]} 18. Qf2 {[%clk
00:50:29]} {[%emt 00:01:05]} Nd7 {[%clk 01:02:28]} {[%emt 00:01:02]} 19. c3
{[%clk 00:43:18]} {[%emt 00:07:42]} Na5 {[%clk 00:58:56]} {[%emt 00:04:02]} 20.
Ne2 {[%clk 00:37:00]} {[%emt 00:06:49]} Nb7 {[%clk 00:58:07]} {[%emt 00:01:18]}
21. Qh4 {[%clk 00:37:07]} {[%emt 00:00:23]} Rh8 {[%clk 00:54:56]} {[%emt
00:03:41]} 22. g6+ {[%clk 00:31:38]} {[%emt 00:05:59]} Nf6 {[%clk 00:54:45]}
{[%emt 00:00:41]} 23. gxf7 {[%clk 00:31:47]} {[%emt 00:00:21]} Kxf7 {[%clk
00:53:56]} {[%emt 00:01:19]} 24. Bg5 {[%clk 00:27:28]} {[%emt 00:04:49]} Qe7
{[%clk 00:52:20]} {[%emt 00:02:05]} 25. Bh3 {[%clk 00:24:56]} {[%emt 00:03:01]}
Bxh3 {[%clk 00:49:47]} {[%emt 00:03:05]} 26. Qxh3 {[%clk 00:25:08]} {[%emt
00:00:19]} Qe6 {[%clk 00:49:53]} {[%emt 00:00:23]} 27. Qxe6+ {[%clk 00:21:23]}
{[%emt 00:04:15]} Kxe6 {[%clk 00:49:43]} {[%emt 00:00:40]} 28. Kd2 {[%clk
00:15:48]} {[%emt 00:06:05]} h6 {[%clk 00:46:13]} {[%emt 00:04:00]} 29. Bxf6
{[%clk 00:15:29]} {[%emt 00:00:49]} Kxf6 {[%clk 00:46:15]} {[%emt 00:00:28]} 30.
Ng3 {[%clk 00:15:53]} {[%emt 00:00:07]} g6 {[%clk 00:44:50]} {[%emt 00:01:54]}
31. Nf1 {[%clk 00:16:03]} {[%emt 00:00:20]} Nc5 {[%clk 00:41:07]} {[%emt
00:04:13]} 32. Ne3 {[%clk 00:15:30]} {[%emt 00:01:02]} Ne6 {[%clk 00:39:25]}
{[%emt 00:02:13]} 33. Nd5+ {[%clk 00:15:01]} {[%emt 00:00:59]} Kf7 {[%clk
00:39:40]} {[%emt 00:00:15]} 34. Kc2 {[%clk 00:11:01]} {[%emt 00:04:30]} Rhd8
{[%clk 00:38:14]} {[%emt 00:01:55]} 35. Rg2 {[%clk 00:09:23]} {[%emt 00:02:10]}
Nf4 {[%clk 00:37:26]} {[%emt 00:01:17]} 36. Nxf4 {[%clk 00:09:27]} {[%emt
00:00:25]} exf4 {[%clk 00:37:51]} {[%emt 00:00:05]} 37. Rg4 {[%clk 00:09:22]}
{[%emt 00:00:36]} g5 {[%clk 00:37:58]} {[%emt 00:00:24]} 38. h4 {[%clk
00:09:33]} {[%emt 00:00:19]} Kf6 {[%clk 00:38:02]} {[%emt 00:00:27]} 39. hxg5+
{[%clk 00:09:36]} {[%emt 00:00:26]} hxg5 {[%clk 00:38:20]} {[%emt 00:00:12]} 40.
Rd5 {[%clk 00:10:04]} {[%emt 00:00:03]} Rc5 {[%clk 00:32:02]} {[%emt 00:06:48]}
41. Rgxg5 {[%clk 00:10:11]} {[%emt 00:00:22]} Rdc8 {[%clk 00:31:26]} {[%emt
00:01:07]} 42. Rxc5 {[%clk 00:10:15]} {[%emt 00:00:26]} Rxc5 {[%clk 00:31:27]}
{[%emt 00:00:29]} 43. Rxc5 {[%clk 00:10:18]} {[%emt 00:00:27]} dxc5 {[%clk
00:31:44]} {[%emt 00:00:12]} 44. Kd3 {[%clk 00:10:40]} {[%emt 00:00:08]} Ke5
{[%clk 00:30:56]} {[%emt 00:01:18]} 45. Ke2 {[%clk 00:09:21]} {[%emt 00:01:49]}
Ke6 {[%clk 00:28:02]} {[%emt 00:03:25]} 46. Kf2 {[%clk 00:08:29]} {[%emt
00:01:22]} Kf6 {[%clk 00:24:36]} {[%emt 00:03:56]} 47. Kg2 {[%clk 00:08:23]}
{[%emt 00:00:35]} Kg5 {[%clk 00:20:59]} {[%emt 00:04:06]} 48. Kh3 {[%clk
00:08:44]} {[%emt 00:00:10]} c4 {[%clk 00:21:08]} {[%emt 00:00:21]} 49. b4
{[%clk 00:08:43]} {[%emt 00:00:31]} Kh5 {[%clk 00:20:08]} {[%emt 00:01:30]} 50.
e5 {[%clk 00:09:03]} {[%emt 00:00:11]} Kg5 {[%clk 00:20:17]} {[%emt 00:00:21]}
51. e6 {[%clk 00:09:28]} {[%emt 00:00:04]} Kf6 {[%clk 00:20:35]} {[%emt
00:00:12]} 52. e7 {[%clk 00:09:17]} {[%emt 00:00:41]} Kxe7 {[%clk 00:20:52]}
{[%emt 00:00:13]} 53. Kg4 {[%clk 00:09:46]} {[%emt 00:00:02]} Ke6 {[%clk
00:20:44]} {[%emt 00:00:38]} 54. Kxf4 {[%clk 00:10:07]} {[%emt 00:00:08]} Kf6
{[%clk 00:21:01]} {[%emt 00:00:12]} 55. Ke4 {[%clk 00:10:33]} {[%emt 00:00:05]}
Ke6 {[%clk 00:21:17]} {[%emt 00:00:14]} 56. f4 {[%clk 00:11:02]} {[%emt
00:00:02]} Kf6 {[%clk 00:21:31]} {[%emt 00:00:16]} 57. f5 {[%clk 00:11:26]}
{[%emt 00:00:05]} Kf7 {[%clk 00:21:37]} {[%emt 00:00:24]} 58. Ke5 {[%clk
00:11:52]} {[%emt 00:00:05]} Ke7 {[%clk 00:21:56]} {[%emt 00:00:10]} 59. f6+
{[%clk 00:11:59]} {[%emt 00:00:22]} Kf7 {[%clk 00:21:26]} {[%emt 00:01:00]} 60.
Kf5 {[%clk 00:12:15]} {[%emt 00:00:15]} Kf8 {[%clk 00:21:42]} {[%emt 00:00:15]}
61. Ke6 {[%clk 00:12:37]} {[%emt 00:00:07]} Ke8 {[%clk 00:22:06]} {[%emt
00:00:07]} 62. f7+ {[%clk 00:13:00]} {[%emt 00:00:06]} Kf8 {[%clk 00:22:28]}
{[%emt 00:00:09]} 63. Kf6 {[%clk 00:12:44]} {[%emt 00:00:46]} a5 {[%clk
00:22:42]} {[%emt 00:00:16]} 64. bxa5 {[%clk 00:13:08]} {[%emt 00:00:06]} b4
{[%clk 00:23:08]} {[%emt 00:00:03]} 65. a6 {[%clk 00:13:35]} {[%emt 00:00:03]}
1-0

[Event "ONJK 2024 ABC"]
[Site "Velp, Netherlands"]
[Date "2024.08.03"]
[Round "3.4"]
[White "Ganeshram, Nirupa"]
[Black "De Vries, Arjan"]
[Result "1/2-1/2"]
[TimeControl "90 minutes + 30 seconds"]
[WhiteElo "1695"]
[BlackElo "1843"]

1. e4 {[%clk 01:30:57]} {[%emt 00:00:02]} c5 {[%clk 01:30:41]} {[%emt
00:00:19]} 2. Nf3 {[%clk 01:31:12]} {[%emt 00:00:15]} d6 {[%clk 01:31:01]}
{[%emt 00:00:09]} 3. c3 {[%clk 01:31:19]} {[%emt 00:00:24]} Nf6 {[%clk
01:30:34]} {[%emt 00:00:57]} 4. Be2 {[%clk 01:30:55]} {[%emt 00:00:54]} Nc6
{[%clk 01:30:43]} {[%emt 00:00:21]} 5. d3 {[%clk 01:30:00]} {[%emt 00:01:25]}
g6 {[%clk 01:30:24]} {[%emt 00:00:49]} 6. O-O {[%clk 01:28:37]} {[%emt
00:01:53]} Bg7 {[%clk 01:30:42]} {[%emt 00:00:12]} 7. d4 {[%clk 01:23:21]}
{[%emt 00:05:46]} cxd4 {[%clk 01:26:35]} {[%emt 00:04:37]} 8. cxd4 {[%clk
01:23:14]} {[%emt 00:00:38]} e6 {[%clk 01:25:27]} {[%emt 00:01:39]} 9. Nc3
{[%clk 01:21:36]} {[%emt 00:02:07]} O-O {[%clk 01:25:07]} {[%emt 00:00:50]} 10.
h3 {[%clk 01:17:27]} {[%emt 00:04:39]} e5 {[%clk 01:23:17]} {[%emt 00:02:20]}
11. Be3 {[%clk 01:09:57]} {[%emt 00:07:59]} Bd7 {[%clk 01:19:29]} {[%emt
00:04:19]} 12. a3 {[%clk 01:04:34]} {[%emt 00:05:53]} Nh5 {[%clk 01:16:41]}
{[%emt 00:03:18]} 13. d5 {[%clk 00:58:37]} {[%emt 00:06:27]} Ne7 {[%clk
01:17:00]} {[%emt 00:00:11]} 14. Nd2 {[%clk 00:56:11]} {[%emt 00:02:56]} Nf4
{[%clk 01:14:37]} {[%emt 00:02:52]} 15. Nc4 {[%clk 00:51:30]} {[%emt 00:05:12]}
Nxh3+ {[%clk 01:08:19]} {[%emt 00:06:48]} 16. gxh3 {[%clk 00:42:36]} {[%emt
00:09:24]} Bxh3 {[%clk 01:08:43]} {[%emt 00:00:06]} 17. Re1 {[%clk 00:42:14]}
{[%emt 00:00:52]} f5 {[%clk 01:08:28]} {[%emt 00:00:45]} 18. exf5 {[%clk
00:36:37]} {[%emt 00:06:07]} Nxf5 {[%clk 01:03:00]} {[%emt 00:05:58]} 19. Qd3
{[%clk 00:18:45]} {[%emt 00:18:22]} b5 {[%clk 00:42:02]} {[%emt 00:21:28]} 20.
Nd2 {[%clk 00:15:26]} {[%emt 00:03:49]} Nh4 {[%clk 00:39:51]} {[%emt 00:02:41]}
21. Nce4 {[%clk 00:11:10]} {[%emt 00:04:46]} 1/2-1/2

[Event "ONJK 2024 ABC"]
[Site "Velp, Netherlands"]
[Date "2024.08.03"]
[Round "3.5"]
[White "Faybish, Dana"]
[Black "Blokzijl, Ruben"]
[Result "1/2-1/2"]
[TimeControl "90 minutes + 30 seconds"]
[WhiteElo "1707"]
[BlackElo "1743"]

1. e4 {[%clk 01:30:51]} {[%emt 00:00:08]} c6 {[%clk 01:30:10]} {[%emt
00:00:50]} 2. d4 {[%clk 01:30:51]} {[%emt 00:00:31]} d5 {[%clk 01:30:30]}
{[%emt 00:00:11]} 3. exd5 {[%clk 01:30:52]} {[%emt 00:00:29]} cxd5 {[%clk
01:30:52]} {[%emt 00:00:07]} 4. Bd3 {[%clk 01:30:51]} {[%emt 00:00:30]} Nc6
{[%clk 01:31:11]} {[%emt 00:00:11]} 5. c3 {[%clk 01:30:45]} {[%emt 00:00:36]}
Nf6 {[%clk 01:31:15]} {[%emt 00:00:26]} 6. h3 {[%clk 01:30:30]} {[%emt
00:00:45]} e5 {[%clk 01:31:07]} {[%emt 00:00:38]} 7. dxe5 {[%clk 01:30:18]}
{[%emt 00:00:42]} Nxe5 {[%clk 01:31:28]} {[%emt 00:00:09]} 8. Nf3 {[%clk
01:29:48]} {[%emt 00:01:00]} Nxd3+ {[%clk 01:31:00]} {[%emt 00:00:57]} 9. Qxd3
{[%clk 01:29:30]} {[%emt 00:00:48]} Bd6 {[%clk 01:29:02]} {[%emt 00:02:28]} 10.
O-O {[%clk 01:27:51]} {[%emt 00:02:10]} O-O {[%clk 01:26:33]} {[%emt 00:02:59]}
11. Bg5 {[%clk 01:25:03]} {[%emt 00:03:17]} h6 {[%clk 01:24:43]} {[%emt
00:02:21]} 12. Bxf6 {[%clk 01:20:43]} {[%emt 00:04:50]} Qxf6 {[%clk 01:24:21]}
{[%emt 00:00:52]} 13. Qxd5 {[%clk 01:13:24]} {[%emt 00:07:49]} Rd8 {[%clk
01:24:36]} {[%emt 00:00:14]} 14. Kh1 {[%clk 01:07:57]} {[%emt 00:05:57]} Bf8
{[%clk 01:17:17]} {[%emt 00:07:50]} 15. Qe5 {[%clk 01:02:59]} {[%emt 00:05:27]}
Qg6 {[%clk 00:53:03]} {[%emt 00:24:45]} 16. Nbd2 {[%clk 00:58:34]} {[%emt
00:04:55]} Bd7 {[%clk 00:46:08]} {[%emt 00:07:25]} 17. Nb3 {[%clk 00:55:29]}
{[%emt 00:03:36]} Bd6 {[%clk 00:41:01]} {[%emt 00:05:36]} 18. Qe3 {[%clk
00:45:52]} {[%emt 00:10:07]} Re8 {[%clk 00:38:44]} {[%emt 00:02:48]} 19. Qd2
{[%clk 00:45:21]} {[%emt 00:00:58]} Bc6 {[%clk 00:38:35]} {[%emt 00:00:40]} 20.
Nbd4 {[%clk 00:44:37]} {[%emt 00:01:14]} Bd5 {[%clk 00:33:31]} {[%emt
00:05:35]} 21. Rad1 {[%clk 00:40:05]} {[%emt 00:05:01]} Be5 {[%clk 00:31:57]}
{[%emt 00:02:05]} 22. Rg1 {[%clk 00:33:31]} {[%emt 00:07:02]} Bxd4 {[%clk
00:27:49]} {[%emt 00:04:41]} 23. Qxd4 {[%clk 00:27:28]} {[%emt 00:06:32]} Rad8
{[%clk 00:22:45]} {[%emt 00:05:34]} 24. Qh4 {[%clk 00:19:18]} {[%emt 00:08:39]}
Qc6 {[%clk 00:18:07]} {[%emt 00:05:09]} 25. Nd4 {[%clk 00:13:05]} {[%emt
00:06:43]} Qd7 {[%clk 00:14:16]} {[%emt 00:04:21]} 26. Nf3 {[%clk 00:05:47]}
{[%emt 00:07:48]} Qc6 {[%clk 00:12:29]} {[%emt 00:02:18]} 27. Qg4 {[%clk
00:03:34]} {[%emt 00:02:40]} Re4 {[%clk 00:05:44]} {[%emt 00:07:17]} 28. Qxe4
{[%clk 00:02:02]} {[%emt 00:02:02]} Bxe4 {[%clk 00:06:03]} {[%emt 00:00:11]} 29.
Rxd8+ {[%clk 00:02:27]} {[%emt 00:00:06]} Kh7 {[%clk 00:06:28]} {[%emt
00:00:05]} 30. Nd4 {[%clk 00:01:34]} {[%emt 00:01:22]} Qf6 {[%clk 00:06:44]}
{[%emt 00:00:15]} 31. Re8 {[%clk 00:01:36]} {[%emt 00:00:26]} Bd5 {[%clk
00:06:00]} {[%emt 00:01:15]} 32. f3 {[%clk 00:01:20]} {[%emt 00:00:46]} Bxa2
{[%clk 00:05:23]} {[%emt 00:01:08]} 33. Ra1 {[%clk 00:01:32]} {[%emt 00:00:18]}
Bd5 {[%clk 00:05:30]} {[%emt 00:00:22]} 34. Rxa7 {[%clk 00:01:45]} {[%emt
00:00:17]} Qb6 {[%clk 00:05:40]} {[%emt 00:00:20]} 35. Raa8 {[%clk 00:00:55]}
{[%emt 00:01:21]} Qxb2 {[%clk 00:05:38]} {[%emt 00:00:32]} 36. Rad8 {[%clk
00:00:58]} {[%emt 00:00:26]} Qc1+ {[%clk 00:04:49]} {[%emt 00:01:20]} 37. Kh2
{[%clk 00:00:55]} {[%emt 00:00:33]} Bc4 {[%clk 00:04:42]} {[%emt 00:00:36]} 38.
Re7 {[%clk 00:00:44]} {[%emt 00:00:41]} Qf4+ {[%clk 00:04:25]} {[%emt
00:00:47]} 39. Kg1 {[%clk 00:00:43]} {[%emt 00:00:30]} 1/2-1/2

[Event "ONJK 2024 ABC"]
[Site "Velp, Netherlands"]
[Date "2024.08.03"]
[Round "3.6"]
[White "Madularea, David"]
[Black "De Rycke, Killian"]
[Result "1-0"]
[TimeControl "90 minutes + 30 seconds"]
[WhiteElo "2190"]
[BlackElo "1751"]

1. d4 {[%clk 01:30:57]} {[%emt 00:00:02]} e6 {[%clk 01:30:39]} {[%emt
00:00:22]} 2. c4 {[%clk 01:31:23]} {[%emt 00:00:04]} d5 {[%clk 01:30:51]}
{[%emt 00:00:18]} 3. Nf3 {[%clk 01:31:47]} {[%emt 00:00:06]} Nf6 {[%clk
01:29:58]} {[%emt 00:01:22]} 4. g3 {[%clk 01:32:09]} {[%emt 00:00:08]} Bb4+
{[%clk 01:29:31]} {[%emt 00:00:58]} 5. Bd2 {[%clk 01:32:04]} {[%emt 00:00:34]}
Bxd2+ {[%clk 01:28:37]} {[%emt 00:01:25]} 6. Nbxd2 {[%clk 01:29:35]} {[%emt
00:02:59]} Bd7 {[%clk 01:26:48]} {[%emt 00:02:18]} 7. Bg2 {[%clk 01:26:11]}
{[%emt 00:03:54]} O-O {[%clk 01:25:28]} {[%emt 00:01:50]} 8. O-O {[%clk
01:22:46]} {[%emt 00:03:54]} Nc6 {[%clk 01:22:28]} {[%emt 00:03:31]} 9. Qc2
{[%clk 01:22:15]} {[%emt 00:01:01]} Ne7 {[%clk 01:21:29]} {[%emt 00:01:29]} 10.
Rfd1 {[%clk 01:10:31]} {[%emt 00:12:13]} Rc8 {[%clk 01:20:05]} {[%emt
00:01:54]} 11. e4 {[%clk 01:09:05]} {[%emt 00:01:57]} c5 {[%clk 01:13:22]}
{[%emt 00:07:13]} 12. Rac1 {[%clk 00:58:25]} {[%emt 00:11:10]} cxd4 {[%clk
01:01:41]} {[%emt 00:12:10]} 13. e5 {[%clk 00:56:47]} {[%emt 00:02:08]} Ng4
{[%clk 01:00:36]} {[%emt 00:01:36]} 14. h3 {[%clk 00:56:58]} {[%emt 00:00:18]}
Nh6 {[%clk 01:00:44]} {[%emt 00:00:22]} 15. Qd3 {[%clk 00:56:41]} {[%emt
00:00:46]} dxc4 {[%clk 00:56:41]} {[%emt 00:04:34]} 16. Nxc4 {[%clk 00:56:36]}
{[%emt 00:00:34]} Bb5 {[%clk 00:56:14]} {[%emt 00:00:58]} 17. g4 {[%clk
00:50:33]} {[%emt 00:06:32]} Ng6 {[%clk 00:47:09]} {[%emt 00:09:34]} 18. Qb3
{[%clk 00:47:47]} {[%emt 00:03:16]} Bxc4 {[%clk 00:38:02]} {[%emt 00:09:38]} 19.
Rxc4 {[%clk 00:48:01]} {[%emt 00:00:15]} Rxc4 {[%clk 00:37:59]} {[%emt
00:00:34]} 20. Qxc4 {[%clk 00:48:26]} {[%emt 00:00:05]} Qa5 {[%clk 00:35:02]}
{[%emt 00:03:27]} 21. Qxd4 {[%clk 00:45:25]} {[%emt 00:03:30]} Qxa2 {[%clk
00:34:11]} {[%emt 00:01:21]} 22. h4 {[%clk 00:45:24]} {[%emt 00:00:31]} Qb3
{[%clk 00:18:35]} {[%emt 00:16:07]} 23. Rd2 {[%clk 00:40:14]} {[%emt 00:05:39]}
a6 {[%clk 00:17:15]} {[%emt 00:01:51]} 24. h5 {[%clk 00:37:32]} {[%emt
00:03:11]} Ne7 {[%clk 00:16:50]} {[%emt 00:00:55]} 25. Ng5 {[%clk 00:31:01]}
{[%emt 00:07:01]} Nd5 {[%clk 00:07:17]} {[%emt 00:10:03]} 26. Qe4 {[%clk
00:25:04]} {[%emt 00:06:27]} g6 {[%clk 00:06:58]} {[%emt 00:00:50]} 27. hxg6
{[%clk 00:24:39]} {[%emt 00:00:55]} hxg6 {[%clk 00:07:18]} {[%emt 00:00:11]} 28.
Nxe6 {[%clk 00:24:29]} {[%emt 00:00:39]} Nf6 {[%clk 00:05:51]} {[%emt
00:01:57]} 29. exf6 {[%clk 00:23:16]} {[%emt 00:01:43]} Qxe6 {[%clk 00:06:02]}
{[%emt 00:00:19]} 30. Qxe6 {[%clk 00:22:03]} {[%emt 00:01:43]} fxe6 {[%clk
00:06:16]} {[%emt 00:00:15]} 31. g5 {[%clk 00:22:00]} {[%emt 00:00:33]} Nf7
{[%clk 00:06:30]} {[%emt 00:00:17]} 32. f4 {[%clk 00:21:56]} {[%emt 00:00:34]}
b6 {[%clk 00:06:29]} {[%emt 00:00:32]} 33. Re2 {[%clk 00:14:43]} {[%emt
00:07:43]} e5 {[%clk 00:03:55]} {[%emt 00:03:04]} 34. fxe5 {[%clk 00:14:53]}
{[%emt 00:00:20]} Nxg5 {[%clk 00:04:07]} {[%emt 00:00:18]} 35. Bd5+ {[%clk
00:15:19]} {[%emt 00:00:04]} Kh7 {[%clk 00:03:08]} {[%emt 00:01:28]} 36. Rh2+
{[%clk 00:15:44]} {[%emt 00:00:05]} 1-0